fUSD/lending_fUSD_20251222
["ID","MTS","AMOUNT","RATE_DAILY","PERIOD"]
[399449305,1766363445326,-500.0,0.00016473,2]
[399449307,1766363445335,-160.18741035,0.00016473,2]
[399449309,1766363445345,-160.18740865,0.00016473,2]
[399449311,1766363445354,-500.0,0.00016473,2]
[399449313,1766363445363,-500.0,0.00016473,2]
[399449315,1766363445374,-207.48820699,0.00016473,2]
[399449317,1766363445383,-500.0,0.00016473,2]
[399449319,1766363445392,-500.0,0.00016473,2]
[399449321,1766363445403,-500.0,0.00016473,2]
[399449323,1766363445413,-500.0,0.00016473,2]
[399449325,1766363445422,-500.0,0.00016473,2]
[399449328,1766363445440,-4279.0,0.00016554,2]
[399449330,1766363445450,-2284.0,0.0001656,2]
[399449332,1766363445459,-1090.1,0.00016574,2]
[399449334,1766363445468,-311.1,0.00016788,2]
[399449335,1766363445477,-151.0,0.00016788,2]
[399449337,1766363445486,-277.35679052,0.00016788,2]
[399449340,1766363445496,-861.83,0.00016829,2]
[399449342,1766363445505,-1156.37387335,0.000169,2]
[399449343,1766363445515,-42835.73625802,0.00016921,2]
[399449346,1766363445524,-3500.0,0.00016931,2]
[399449348,1766363445533,-1954.77156402,0.00016931,2]
[399449349,1766363445542,-3500.0,0.00016931,2]
[399449351,1766363445551,-150.0,0.00016973,2]
[399449354,1766363445561,-150.0,0.00016973,2]
[399449356,1766363445571,-2234.03011894,0.0001699,2]
[399449357,1766363445580,-151.0,0.00016997,2]
[399449359,1766363445589,-861.83,0.00016999,2]
[399449362,1766363445599,-861.83,0.00016999,2]
[399449363,1766363445608,-861.83,0.00016999,2]
[399449365,1766363445618,-861.83,0.00016999,2]
[399449367,1766363445628,-861.83,0.00016999,2]
[399449369,1766363445638,-861.83,0.00016999,2]
[399449371,1766363445648,-861.83,0.00016999,2]
[399449374,1766363445657,-861.83,0.00016999,2]
[399449375,1766363445666,-861.83,0.00016999,2]
[399449378,1766363445678,-861.83,0.00016999,2]
[399449380,1766363445687,-861.83,0.00016999,2]
[399449381,1766363445696,-861.83,0.00016999,2]
[399449383,1766363445706,-861.9,0.00016999,2]
[399449385,1766363445716,-300.0,0.00016999,2]
[399449387,1766363445725,-300.0,0.00016999,2]
[399449390,1766363445734,-300.0,0.00016999,2]
[399449391,1766363445743,-666.0,0.00016999,2]
[399449394,1766363445754,-150.0,0.00017,2]
[399449395,1766363445764,-2649.90791003,0.00017,2]
[399449397,1766363445774,-6687549.13897378,0.00017,2]
[399449457,1766363446286,-2072.78,0.000137,2]
[399449459,1766363446296,-2072.78,0.000137,2]
[399449461,1766363446305,-441810.00273782,0.00017,2]
[399449463,1766363446317,-1112.55465521,0.00017,2]
[399449465,1766363446328,-252.73258728,0.00017,2]
[399449467,1766363446339,-607.79607979,0.00017,2]
[399449470,1766363446351,-907.21,0.00017,2]
[399449484,1766363446506,-438.05999965,0.000169,2]
[399449486,1766363446518,-919.60229417,0.000169,2]
[399449488,1766363446527,-7547.65232597,0.00017,2]
[399449490,1766363446538,-25118.62036658,0.00017,2]
[399449493,1766363446559,-444.81816065,0.00017,2]
[399449503,1766363446647,-440177.76478399,0.00017,2]
[399449505,1766363446658,-533.79275518,0.00017,2]
[399449507,1766363446669,-6459.03571368,0.00017,2]
[399449509,1766363446680,-61054.40474999,0.00017,2]
[399449640,1766363497392,196.653,0.00035003,40]
[399449686,1766363625167,10000.0,0.00035616,30]
[399449687,1766363636087,10000.0,0.00035616,30]
[399449716,1766363789669,1782.13,5.668e-05,2]
[399449717,1766363789892,1782.13,5.966e-05,2]
[399449718,1766363790108,1782.13,6.264e-05,2]
[399449719,1766363790305,1782.13,6.563e-05,2]
[399449720,1766363790526,1782.13,6.861e-05,2]
[399449721,1766363790727,1089.36,7.159e-05,2]
[399449722,1766363790750,692.77,7.159e-05,2]
[399449723,1766363791142,1782.13,7.457e-05,2]
[399449724,1766363792319,1782.13,7.756e-05,2]
[399449725,1766363792420,567.35159755,8.054e-05,2]
[399449726,1766363792442,1214.77840245,8.054e-05,2]
[399449727,1766363792500,1782.13,8.352e-05,2]
[399449728,1766363792541,1782.13,8.651e-05,2]
[399449750,1766363870917,45.3431951,7.159e-05,2]
[399449751,1766363870939,373.86240639,7.159e-05,2]
[399449782,1766364035585,4450.51919116,8.755e-05,2]
[399449783,1766364035610,4824.38159755,8.755e-05,2]
[399449784,1766364035637,4824.38159755,8.755e-05,2]
[399449785,1766364035661,4824.38159755,8.755e-05,2]
[399449786,1766364035685,4824.38159755,8.755e-05,2]
[399449787,1766364035708,4824.38159755,8.755e-05,2]
[399449788,1766364035732,4824.38159755,8.755e-05,2]
[399449789,1766364035756,4824.38159755,8.755e-05,2]
[399449804,1766364097457,157.323,0.00035039,40]
[399449807,1766364191446,1240.0,0.00035616,30]
[399449815,1766364234990,1200.0,0.00035616,30]
[399449835,1766364330504,-813.0,8.753e-05,2]
[399449836,1766364330528,-171.64101435,8.753e-05,2]
[399449837,1766364330552,-300.0,8.753e-05,2]
[399449838,1766364330576,-1200.0,8.753e-05,2]
[399449839,1766364330598,-150.0,8.753e-05,2]
[399449840,1766364330621,-500.0,8.753e-05,2]
[399449849,1766364349746,165.0,0.000356,30]
[399449851,1766364361216,300.0,8.753e-05,2]
[399449852,1766364364374,165.0,0.000356,120]
[399449853,1766364374461,500.0,8.753e-05,2]
[399449854,1766364395227,1174.36363854,0.00035616,30]
[399449855,1766364415724,500.0,8.753e-05,2]
[399449861,1766364421521,300.0,8.753e-05,2]
[399449867,1766364429523,1000.05,0.000356,30]
[399449875,1766364451064,968.85,8.732e-05,2]
[399449876,1766364464030,500.0,8.753e-05,2]
[399449882,1766364481233,300.0,8.753e-05,2]
[399449883,1766364481837,150.0,8.753e-05,2]
[399449886,1766364487027,500.0,0.00010958,4]
[399449887,1766364487289,500.0,0.00010958,5]
[399449888,1766364487531,500.0,0.00011098,6]
[399449889,1766364487932,6481.16,7.945e-05,2]
[399449890,1766364487953,10000.01,7.945e-05,2]
[399449891,1766364487975,1865.35898565,7.945e-05,2]
[399449892,1766364488011,500.0,0.00011185,7]
[399449895,1766364495005,1000.05,0.00035616,120]
[399449896,1766364498362,-605.76247711,7.945e-05,2]
[399449897,1766364505348,-42.83988124,7.945e-05,2]
[399449913,1766364526091,385.0,0.0003561,30]
[399449914,1766364526898,231.0,0.0003561,30]
[399449915,1766364527697,177.0,0.0003561,30]
[399449951,1766364557236,-263.69647028,8.653e-05,2]
[399449955,1766364558806,-253.37020507,8.653e-05,2]
[399449956,1766364561358,-289.17760555,8.653e-05,2]
[399449957,1766364563534,-300.0,8.583e-05,2]
[399449958,1766364563578,-122.67,8.583e-05,2]
[399449959,1766364565561,-336.32241046,8.653e-05,2]
[399449960,1766364566681,150.64271723,0.0003561,30]
[399449961,1766364567138,-247.53688052,8.653e-05,2]
[399449962,1766364568704,24889.18,0.00035616,120]
[399449963,1766364571143,-4717.59210421,8.653e-05,2]
[399449964,1766364574037,-393.16426371,8.653e-05,2]
[399449965,1766364582418,-178.70552067,8.653e-05,2]
[399449966,1766364585090,-216.21042262,8.653e-05,2]
[399449967,1766364585869,418.0,0.0003561,30]
[399449968,1766364587781,-299.72083751,8.653e-05,2]
[399449969,1766364590323,-181.65882344,8.653e-05,2]
[399449970,1766364591376,-187.84216364,8.653e-05,2]
[399449971,1766364594693,-312.60431575,8.653e-05,2]
[399449972,1766364596822,-205.1043219,8.653e-05,2]
[399449973,1766364599973,1852.42,8.475e-05,2]
[399449974,1766364600039,-320.06511931,8.653e-05,2]
[399449975,1766364601146,300.0,8.652e-05,2]
[399449976,1766364601189,1200.0,8.652e-05,2]
[399449977,1766364601231,300.0,8.652e-05,2]
[399449979,1766364602154,-284.6735378,8.653e-05,2]
[399449980,1766364603647,-189.88430731,8.653e-05,2]
[399449981,1766364604008,222.0,8.653e-05,2]
[399449982,1766364606021,-157.52381796,8.653e-05,2]
[399449983,1766364607432,-237.13811869,8.653e-05,2]
[399449985,1766364608948,-244.16623454,8.653e-05,2]
[399449986,1766364611050,-261.74556172,8.653e-05,2]
[399449987,1766364614331,-205.1043219,8.653e-05,2]
[399449988,1766364616423,-229.00461773,8.653e-05,2]
[399449989,1766364618401,-258.8143871,8.653e-05,2]
[399449990,1766364619973,-267.36914394,8.653e-05,2]
[399449991,1766364621478,-155.42275962,8.653e-05,2]
[399449992,1766364623845,1930.21909662,8.652e-05,2]
[399449993,1766364624044,-241.1856129,8.653e-05,2]
[399449995,1766364626342,-165.8939225,8.653e-05,2]
[399449996,1766364627895,-235.9438,8.653e-05,2]
[399449997,1766364630022,-278.93218325,8.653e-05,2]
[399449998,1766364631767,151.36092004,8.652e-05,2]
[399449999,1766364631812,500.0,8.652e-05,2]
[399450000,1766364631895,285.53903636,8.652e-05,2]
[399450002,1766364632321,419.62016409,8.652e-05,2]
[399450007,1766364632786,-346.98718536,8.653e-05,2]
[399450008,1766364632796,-259.16913008,8.653e-05,2]
[399450009,1766364632809,-907.273,8.653e-05,2]
[399450010,1766364632821,-708.56399989,8.653e-05,2]
[399450011,1766364632832,-432.212994,8.653e-05,2]
[399450012,1766364632843,-2351.37,8.653e-05,2]
[399450013,1766364632855,-3369.95194618,8.653e-05,2]
[399450014,1766364633584,-231650.05280699,8.653e-05,2]
[399450015,1766364633595,-149932.26676321,8.653e-05,2]
[399450016,1766364633605,-1254.41808677,8.653e-05,2]
[399450017,1766364633616,-1013.35862387,8.653e-05,2]
[399450018,1766364633628,-9937.38520246,8.653e-05,2]
[399450019,1766364633638,-711.63073972,8.653e-05,2]
[399450020,1766364633668,-367.00576297,8.653e-05,2]
[399450021,1766364633685,-660.1,8.653e-05,2]
[399450022,1766364633697,-737.05343386,8.653e-05,2]
[399450023,1766364633708,-525.16146565,8.653e-05,2]
[399450024,1766364633733,-677.36324147,8.653e-05,2]
[399450025,1766364633743,-1146.42868579,8.653e-05,2]
[399450026,1766364634305,196.83618448,8.652e-05,2]
[399450027,1766364634342,500.0,8.652e-05,2]
[399450028,1766364634396,500.0,8.652e-05,2]
[399450029,1766364634434,500.0,8.652e-05,2]
[399450030,1766364634484,500.0,8.652e-05,2]
[399450031,1766364634545,396.67459841,8.652e-05,2]
[399450032,1766364636039,-103.32540159,8.652e-05,2]
[399450033,1766364636061,-500.0,8.652e-05,2]
[399450034,1766364636083,-475.38518518,8.652e-05,2]
[399450035,1766364637091,-24.61481482,8.652e-05,2]
[399450036,1766364637111,-205.58220187,8.652e-05,2]
[399450051,1766364638322,-294.41779813,8.652e-05,2]
[399450053,1766364638332,-500.0,8.652e-05,2]
[399450054,1766364638342,-500.0,8.652e-05,2]
[399450055,1766364638351,-500.0,8.652e-05,2]
[399450056,1766364638361,-500.0,8.652e-05,2]
[399450057,1766364638371,-3.85661699,8.652e-05,2]
[399450058,1766364638383,-496.14338301,8.652e-05,2]
[399450059,1766364638393,-142.69428064,8.652e-05,2]
[399450060,1766364638404,-357.30571936,8.652e-05,2]
[399450061,1766364638413,-500.0,8.652e-05,2]
[399450062,1766364638423,-633.57395592,8.652e-05,2]
[399450063,1766364638432,-500.0,8.652e-05,2]
[399450064,1766364638441,-250.72084587,8.652e-05,2]
[399450065,1766364638451,-500.0,8.652e-05,2]
[399450066,1766364638460,-500.0,8.652e-05,2]
[399450067,1766364638469,-500.0,8.652e-05,2]
[399450068,1766364638478,-265.33316833,8.652e-05,2]
[399450069,1766364638490,-341.62993158,8.652e-05,2]
[399450070,1766364638499,-500.0,8.652e-05,2]
[399450071,1766364638508,-500.0,8.652e-05,2]
[399450072,1766364638518,-500.0,8.652e-05,2]
[399450073,1766364638527,-500.0,8.652e-05,2]
[399450074,1766364638536,-500.0,8.652e-05,2]
[399450075,1766364638545,-500.0,8.652e-05,2]
[399450076,1766364638554,-500.0,8.652e-05,2]
[399450077,1766364638563,-500.0,8.652e-05,2]
[399450078,1766364638572,-500.0,8.652e-05,2]
[399450079,1766364638581,-500.0,8.652e-05,2]
[399450080,1766364638590,-500.0,8.652e-05,2]
[399450081,1766364638599,-500.0,8.652e-05,2]
[399450082,1766364638609,-500.0,8.652e-05,2]
[399450083,1766364638618,-500.0,8.652e-05,2]
[399450084,1766364638628,-500.0,8.652e-05,2]
[399450085,1766364638637,-500.0,8.652e-05,2]
[399450086,1766364638647,-500.0,8.652e-05,2]
[399450087,1766364638656,-500.0,8.652e-05,2]
[399450088,1766364638665,-500.0,8.652e-05,2]
[399450090,1766364638674,-500.0,8.652e-05,2]
[399450091,1766364638685,-500.0,8.652e-05,2]
[399450092,1766364638695,-500.0,8.652e-05,2]
[399450093,1766364638704,-500.0,8.652e-05,2]
[399450094,1766364638722,-500.0,8.652e-05,2]
[399450095,1766364638732,-500.0,8.652e-05,2]
[399450096,1766364638741,-500.0,8.652e-05,2]
[399450097,1766364638751,-500.0,8.652e-05,2]
[399450098,1766364638760,-500.0,8.652e-05,2]
[399450099,1766364638769,-500.0,8.652e-05,2]
[399450100,1766364638779,-500.0,8.652e-05,2]
[399450101,1766364638788,-500.0,8.652e-05,2]
[399450102,1766364638798,-500.0,8.652e-05,2]
[399450103,1766364638807,-500.0,8.652e-05,2]
[399450104,1766364638816,-500.0,8.652e-05,2]
[399450105,1766364638826,-500.0,8.652e-05,2]
[399450106,1766364638836,-500.0,8.652e-05,2]
[399450107,1766364638846,-500.0,8.652e-05,2]
[399450108,1766364638856,-500.0,8.652e-05,2]
[399450109,1766364638866,-500.0,8.652e-05,2]
[399450110,1766364638875,-500.0,8.652e-05,2]
[399450111,1766364638884,-500.0,8.652e-05,2]
[399450112,1766364638894,-500.0,8.652e-05,2]
[399450113,1766364638904,-500.0,8.652e-05,2]
[399450114,1766364638914,-500.0,8.652e-05,2]
[399450115,1766364638924,-519.45495819,8.652e-05,2]
[399450116,1766364638933,-3374.51511024,8.653e-05,2]
[399450117,1766364638947,-2149.884,8.653e-05,2]
[399450118,1766364638958,-2140.429727,8.653e-05,2]
[399450119,1766364638969,-112694.14491063,8.653e-05,2]
[399450120,1766364638980,-11992.42953689,8.653e-05,2]
[399450121,1766364638992,-937.5,8.653e-05,2]
[399450122,1766364639003,-363.18272445,8.653e-05,2]
[399450123,1766364639014,-3704.96,8.653e-05,2]
[399450124,1766364639027,-2167.29775329,8.653e-05,2]
[399450125,1766364639038,-441672.32937763,8.653e-05,2]
[399450126,1766364639047,-336.15530719,8.678e-05,2]
[399450127,1766364639057,-263.6965,8.678e-05,2]
[399450128,1766364639067,-235.9438,8.678e-05,2]
[399450129,1766364639081,-343.2820287,8.753e-05,2]
[399450130,1766364639091,-2446.7,8.753e-05,2]
[399450131,1766364639101,-500.0,8.753e-05,2]
[399450132,1766364639111,-250.0,8.754e-05,2]
[399450133,1766364639121,-51200.35962599,8.755e-05,2]
[399450134,1766364639132,-200.0,8.759e-05,2]
[399450135,1766364639142,-3524.07,8.778e-05,2]
[399450136,1766364639152,-1782.13,8.949e-05,2]
[399450137,1766364639162,-2446.7,9.027e-05,2]
[399450138,1766364639172,-4999.99,9.027e-05,2]
[399450139,1766364639181,-9999.99,9.027e-05,2]
[399450140,1766364639191,-150.99,9.027e-05,2]
[399450141,1766364639201,-999.99,9.027e-05,2]
[399450142,1766364639210,-405.18,9.027e-05,2]
[399450143,1766364639220,-9999.99,9.027e-05,2]
[399450144,1766364639230,-299.99,9.027e-05,2]
[399450145,1766364639240,-9999.99,9.027e-05,2]
[399450146,1766364639249,-500.0,9.027e-05,2]
[399450147,1766364639260,-6689.5733,9.046e-05,2]
[399450148,1766364639270,-88804.8189,9.046e-05,2]
[399450149,1766364639285,-422.67,9.06e-05,2]
[399450150,1766364639295,-9999.99,9.144e-05,2]
[399450151,1766364639305,-2230.73,9.144e-05,2]
[399450152,1766364639315,-499.99,9.144e-05,2]
[399450153,1766364639325,-150.99,9.144e-05,2]
[399450154,1766364639335,-8382.2395,9.146e-05,2]
[399450155,1766364639345,-2500.0,9.146e-05,2]
[399450156,1766364639355,-431.9763,9.246e-05,2]
[399450157,1766364639365,-1782.13,9.247e-05,2]
[399450158,1766364639376,-2446.7,9.301e-05,2]
[399450159,1766364639386,-500.0,9.301e-05,2]
[399450160,1766364639395,-420.0,9.518e-05,2]
[399450161,1766364639405,-1680.0,9.518e-05,2]
[399450162,1766364639415,-420.0,9.518e-05,2]
[399450163,1766364639424,-250.0,9.519e-05,2]
[399450164,1766364639435,-422.67,9.537e-05,2]
[399450165,1766364639445,-1782.13,9.546e-05,2]
[399450166,1766364639454,-2446.7,9.575e-05,2]
[399450167,1766364639464,-500.0,9.575e-05,2]
[399450168,1766364639477,-255.0,9.628e-05,2]
[399450169,1766364639487,-250.0,9.629e-05,2]
[399450170,1766364639497,-221.31372828,9.629e-05,2]
[399450171,1766364639507,-13312.29,9.67e-05,2]
[399450172,1766364639516,-9999.99,9.67e-05,2]
[399450173,1766364639525,-1782.13,9.844e-05,2]
[399450174,1766364639535,-2446.7,9.849e-05,2]
[399450175,1766364639544,-500.0,9.849e-05,2]
[399450176,1766364639554,-151.0,0.0001,2]
[399450177,1766364639563,-151.0,0.0001,2]
[399450178,1766364639573,-151.0,0.0001,2]
[399450179,1766364639583,-151.0,0.0001,2]
[399450180,1766364639594,-151.0,0.0001,2]
[399450181,1766364639604,-151.0,0.0001,2]
[399450182,1766364639614,-151.0,0.0001,2]
[399450183,1766364639624,-151.0,0.0001,2]
[399450184,1766364639634,-151.0,0.0001,2]
[399450185,1766364639643,-151.0,0.0001,2]
[399450186,1766364639654,-151.0,0.0001,2]
[399450187,1766364639663,-151.0,0.0001,2]
[399450188,1766364639678,-151.0,0.0001,2]
[399450189,1766364639687,-151.0,0.0001,2]
[399450190,1766364639697,-151.0,0.0001,2]
[399450191,1766364639706,-151.0,0.0001,2]
[399450192,1766364639716,-151.0,0.0001,2]
[399450193,1766364639727,-151.0,0.0001,2]
[399450194,1766364639736,-151.0,0.0001,2]
[399450195,1766364639745,-151.0,0.0001,2]
[399450196,1766364639756,-2234.03011894,0.0001,2]
[399450197,1766364639766,-422.67,0.00010013,2]
[399450198,1766364639776,-2446.7,0.00010123,2]
[399450199,1766364639785,-500.0,0.00010123,2]
[399450200,1766364639794,-1782.13,0.00010142,2]
[399450201,1766364639805,-2446.7,0.00010397,2]
[399450202,1766364639814,-500.0,0.00010397,2]
[399450203,1766364639824,-1782.13,0.0001044,2]
[399450204,1766364639833,-587.0,0.00010469,2]
[399450205,1766364639843,-2351.0,0.00010469,2]
[399450206,1766364639852,-587.0,0.00010469,2]
[399450207,1766364639862,-422.67,0.0001049,2]
[399450208,1766364639874,-433.0,0.00010591,2]
[399450209,1766364639884,-250.0,0.0001062,2]
[399450210,1766364639893,-2446.7,0.00010671,2]
[399450211,1766364639903,-500.0,0.00010671,2]
[399450212,1766364639912,-1782.13,0.00010739,2]
[399450213,1766364639922,-1187.95450711,0.000109,2]
[399450214,1766364639931,-1187.9545071,0.000109,2]
[399450215,1766364639940,-2446.7,0.00010945,2]
[399450216,1766364639949,-309.22801739,0.00010945,2]
[399450217,1766364639959,-500.0,0.00010958,2]
[399450218,1766364639969,-500.0,0.00010958,3]
[399450219,1766364639979,-150.0,0.00010959,2]
[399450220,1766364639989,-422.67,0.00010967,2]
[399450221,1766364639999,-1782.13,0.00011037,2]
[399450222,1766364640008,-43500.5505591,0.00011099,2]
[399450223,1766364640018,-43500.55055908,0.00011099,2]
[399450224,1766364640027,-43500.55055908,0.00011099,2]
[399450225,1766364640037,-27396.24637479,0.00011099,2]
[399450226,1766364640047,-27396.24637477,0.00011099,2]
[399450227,1766364640056,-27396.24637477,0.00011099,2]
[399450228,1766364640065,-2446.7,0.00011219,2]
[399450229,1766364640077,-1782.13,0.00011335,2]
[399450230,1766364640086,-43500.55055908,0.00011352,2]
[399450231,1766364640096,-1187.9545071,0.00011362,2]
[399450232,1766364640107,-422.67,0.00011444,2]
[399450233,1766364640116,-2446.7,0.00011493,2]
[399450234,1766364640125,-823.0,0.00011516,2]
[399450235,1766364640135,-3292.0,0.00011516,2]
[399450236,1766364640144,-823.0,0.00011516,2]
[399450237,1766364640154,-285.46,0.00011632,2]
[399450238,1766364640163,-736.0,0.0001165,2]
[399450239,1766364640173,-27396.24637477,0.00011664,2]
[399450240,1766364640185,-2446.7,0.00011767,2]
[399450241,1766364640195,-19975.44,0.00011781,2]
[399450242,1766364640206,-356.59,0.00011823,2]
[399450243,1766364640216,-422.67,0.00011921,2]
[399450244,1766364640227,-2446.7,0.00012041,2]
[399450245,1766364640237,-43500.55055908,0.00012277,2]
[399450246,1766364640247,-2446.7,0.00012315,2]
[399450247,1766364640258,-422.67,0.00012398,2]
[399450248,1766364640267,-1187.9545071,0.0001247,2]
[399450249,1766364640277,-27396.24637477,0.00012537,2]
[399450250,1766364640288,-2446.7,0.00012589,2]
[399450251,1766364640297,-345.0,0.00012668,2]
[399450252,1766364640307,-322.0,0.00012668,2]
[399450253,1766364640318,-4609.0,0.00012668,2]
[399450254,1766364640327,-1252.0,0.00012814,2]
[399450255,1766364640337,-151.0,0.00012822,2]
[399450256,1766364640348,-151.0,0.00012824,2]
[399450257,1766364640358,-151.0,0.00012828,2]
[399450258,1766364640368,-151.0,0.00012853,2]
[399450259,1766364640380,-2446.7,0.00012863,2]
[399450260,1766364640390,-422.67,0.00012874,2]
[399450261,1766364640400,-151.0,0.00013059,2]
[399450262,1766364640410,-2446.7,0.00013137,2]
[399450263,1766364640420,-43500.55055908,0.00013201,2]
[399450264,1766364640430,-27396.24637477,0.00013409,2]
[399450265,1766364640440,-2446.7,0.00013411,2]
[399450266,1766364640450,-1187.9545071,0.00013577,2]
[399450267,1766364640459,-500.0,0.00013642,8]
[399450268,1766364640470,-151.79,0.00013643,2]
[399450269,1766364640479,-500.0,0.00013643,2]
[399450270,1766364640489,-500.0,0.00013643,2]
[399450271,1766364640499,-500.0,0.00013643,2]
[399450272,1766364640509,-167.14597224,0.00013643,2]
[399450273,1766364640519,-500.0,0.00013643,2]
[399450274,1766364640529,-224.07561459,0.00013643,2]
[399450275,1766364640539,-550.17823057,0.00013643,2]
[399450276,1766364640548,-500.0,0.00013643,2]
[399450277,1766364640558,-165.55250469,0.00013643,2]
[399450278,1766364640568,-161.51413254,0.00013643,2]
[399450279,1766364640577,-500.0,0.00013643,2]
[399450280,1766364640587,-176.68955298,0.00013643,2]
[399450281,1766364640597,-163.12595914,0.00013643,2]
[399450282,1766364640606,-163.74041745,0.00013643,2]
[399450283,1766364640616,-500.25022933,0.00013643,2]
[399450284,1766364640630,-500.0,0.00013643,2]
[399450285,1766364640640,-500.0,0.00013643,2]
[399450286,1766364640650,-500.0,0.00013643,2]
[399450287,1766364640659,-500.0,0.00013643,2]
[399450288,1766364640670,-172.78810174,0.00013643,2]
[399450289,1766364640682,-500.0,0.00013643,2]
[399450290,1766364640692,-165.47156837,0.00013643,2]
[399450291,1766364640701,-500.0,0.00013643,2]
[399450292,1766364640711,-500.0,0.00013643,2]
[399450293,1766364640721,-168.62041939,0.00013643,2]
[399450294,1766364640731,-500.0,0.00013643,2]
[399450295,1766364640741,-500.0,0.00013643,2]
[399450296,1766364640752,-500.0,0.00013643,2]
[399450297,1766364640763,-500.0,0.00013643,2]
[399450298,1766364640774,-500.0,0.00013643,2]
[399450299,1766364640783,-500.0,0.00013643,2]
[399450300,1766364640794,-500.0,0.00013643,2]
[399450301,1766364640803,-500.0,0.00013643,2]
[399450302,1766364640813,-172.62322663,0.00013643,2]
[399450303,1766364640824,-535.22474582,0.00013643,2]
[399450304,1766364640834,-500.0,0.00013643,2]
[399450305,1766364640843,-500.0,0.00013643,2]
[399450306,1766364640853,-500.0,0.00013643,2]
[399450307,1766364640863,-500.0,0.00013643,2]
[399450308,1766364640873,-500.0,0.00013643,2]
[399450309,1766364640883,-162.06342056,0.00013643,2]
[399450310,1766364640893,-165.33365869,0.00013643,2]
[399450311,1766364640902,-500.0,0.00013643,2]
[399450312,1766364640911,-500.0,0.00013643,2]
[399450313,1766364640921,-179.52644703,0.00013643,2]
[399450314,1766364640931,-276.49556074,0.00013643,2]
[399450315,1766364640940,-162.88863399,0.00013643,2]
[399450316,1766364640950,-165.81830667,0.00013643,2]
[399450317,1766364640959,-500.0,0.00013643,2]
[399450318,1766364640969,-500.0,0.00013643,2]
[399450319,1766364640978,-500.0,0.00013643,2]
[399450320,1766364640988,-216.30072536,0.00013643,2]
[399450321,1766364640997,-500.0,0.00013643,2]
[399450322,1766364641007,-500.0,0.00013643,2]
[399450323,1766364641016,-160.24966058,0.00013643,2]
[399450324,1766364641026,-500.0,0.00013643,2]
[399450325,1766364641036,-201.68060624,0.00013643,2]
[399450326,1766364641047,-500.0,0.00013643,2]
[399450327,1766364641057,-515.90612576,0.00013643,2]
[399450328,1766364641067,-2446.7,0.00013685,2]
[399450329,1766364641076,-500.0,0.00013698,2]
[399450330,1766364641086,-500.0,0.00013698,2]
[399450331,1766364641096,-500.0,0.00013698,2]
[399450332,1766364641105,-500.0,0.00013698,2]
[399450333,1766364641115,-500.0,0.00013698,2]
[399450334,1766364641125,-500.0,0.00013698,2]
[399450335,1766364641134,-500.0,0.00013698,2]
[399450336,1766364641144,-500.0,0.00013698,2]
[399450337,1766364641157,-861.83,0.00013698,2]
[399450338,1766364641167,-861.83,0.00013698,2]
[399450339,1766364641177,-861.83,0.00013698,2]
[399450340,1766364641187,-861.83,0.00013698,2]
[399450341,1766364641197,-861.83,0.00013698,2]
[399450342,1766364641206,-861.83,0.00013698,2]
[399450343,1766364641216,-861.83,0.00013698,2]
[399450344,1766364641226,-861.83,0.00013698,2]
[399450345,1766364641236,-861.83,0.00013698,2]
[399450346,1766364641246,-861.83,0.00013698,2]
[399450347,1766364641256,-861.83,0.00013698,2]
[399450348,1766364641266,-861.83,0.00013698,2]
[399450349,1766364641275,-861.83,0.00013698,2]
[399450350,1766364641284,-500.0,0.00013698,2]
[399450351,1766364641294,-500.0,0.00013698,2]
[399450352,1766364641303,-500.0,0.00013698,2]
[399450353,1766364641313,-500.0,0.00013698,2]
[399450354,1766364641323,-500.0,0.00013698,2]